bitfinex-derivatives/quotes_SOLF0:USTF0_20250522
["timestamp","ask_amount","ask_price","bid_price","bid_amount"]
[1747877282316,9.261e-05,174.22,174.2,5.7379]
[1747877282513,9.261e-05,174.22,174.19,0.04310815]
[1747877282715,141.80009261,174.22,174.19,0.04310815]
[1747877283816,141.80009261,174.22,174.19,8.15e-06]
[1747877284525,5.7383,174.2,174.19,8.15e-06]
[1747877285227,5.738,174.21,174.19,8.15e-06]
[1747877286217,5.7382,174.2,174.19,8.15e-06]
[1747877288325,147.53789261,174.22,174.19,8.15e-06]
[1747877288923,5.738,174.21,174.19,8.15e-06]
[1747877289725,147.53769261,174.22,174.19,8.15e-06]
[1747877291029,141.80009261,174.22,174.19,8.15e-06]
[1747877291628,141.80009261,174.22,174.2,5.738]
[1747877292028,141.80009261,174.22,174.19,8.15e-06]
[1747877292227,141.80009261,174.22,174.19,5.73830815]
[1747877293530,147.53769261,174.22,174.19,8.15e-06]
[1747877293923,141.80009261,174.22,174.19,8.15e-06]
[1747877294429,141.80009261,174.22,174.03,0.99916736]
[1747877294730,141.80009261,174.22,174.09,5.7418]
[1747877294731,5.7402,174.15,174.09,5.7418]
[1747877294921,141.24,174.17,174.05,6.74979082]
[1747877295424,0.0367129,174.13,174.09,0.04049247]
[1747877295732,250.32,174.21,174.09,141.27784196]
[1747877295937,256.0579,174.21,174.09,141.24]
[1747877296440,256.0579,174.21,174.14,5.7402]
[1747877296626,146.9779,174.21,174.14,5.7402]
[1747877296831,0.04316695,174.19,174.16,0.0364045]
[1747877299043,0.04316695,174.19,174.16,5.7758045]
[1747877299339,0.04316695,174.19,174.16,0.0364045]
[1747877300340,0.04316695,174.19,174.17,5.7392]
[1747877300840,0.04316695,174.19,174.16,5.7759045]
[1747877301340,0.04316695,174.19,174.16,0.0364045]
[1747877302636,0.04316695,174.19,174.18,5.7389]
[1747877303143,141.24,174.25,174.21,5.7377]
[1747877303842,141.24,174.25,174.2,5.7382]
[1747877304135,0.03676235,174.24,174.21,0.04020618]
[1747877304642,0.03676235,174.24,174.22,5.7375]
[1747877305038,0.03676235,174.24,174.21,0.04020618]
[1747877306243,0.03676235,174.24,174.23,5.7373]
[1747877308247,112.92830427,174.32,174.21,0.04020618]
[1747877308444,112.92830427,174.32,174.2,6.74979082]
[1747877308847,141.22,174.33,174.2,6.74979082]
[1747877309040,0.03756841,174.28,174.25,0.03833559]
[1747877310046,0.03756841,174.28,174.26,5.736]
[1747877310247,0.03756841,174.28,174.25,0.03833559]
[1747877310440,0.03756841,174.28,174.25,141.25833559]
[1747877310640,141.22,174.33,174.25,141.25833559]
[1747877311048,5.7323,174.39,174.33,5.7339]
[1747877311240,5.7323,174.39,174.29,6.74979082]
[1747877311440,5.7323,174.39,174.3,141.22]
[1747877311641,0.04364654,174.36,174.33,0.04256572]
[1747877312346,0.04364654,174.36,174.33,5.77646572]
[1747877314055,0.04364654,174.36,174.34,5.7333]
[1747877314245,0.04364654,174.36,174.33,0.04256572]
[1747877314448,5.7304,174.44,174.4,5.7316]
[1747877314649,141.18,174.45,174.35,141.18]
[1747877314949,5.7297,174.47,174.42,5.7307]
[1747877315154,141.18,174.49,174.36,141.18]
[1747877315547,0.03892778,174.44,174.41,0.03751185]
[1747877317657,5.731,174.43,174.41,0.03751185]
[1747877318154,0.03892778,174.44,174.41,0.03751185]
[1747877320546,5.7308,174.43,174.41,0.03751185]
[1747877320741,0.03892778,174.44,174.41,0.03751185]
[1747877321051,5.76932778,174.44,174.41,0.03751185]
[1747877321453,0.03892778,174.44,174.41,0.03751185]
[1747877321754,5.7308,174.43,174.41,0.03751185]
[1747877322256,5.731,174.42,174.41,0.03751185]
[1747877324758,0.03892778,174.44,174.41,0.03751185]
[1747877325755,5.76932778,174.44,174.41,0.03751185]
[1747877325956,0.03892778,174.44,174.41,0.03751185]
[1747877326659,5.76962778,174.44,174.41,0.03751185]
[1747877327258,5.731,174.42,174.41,0.03751185]
[1747877327764,0.03892778,174.44,174.41,0.03751185]
[1747877327765,5.7307,174.43,174.41,0.03751185]
[1747877328355,5.731,174.42,174.41,0.03751185]
[1747877329051,5.7307,174.43,174.41,0.03751185]
[1747877329557,5.731,174.42,174.41,0.03751185]
[1747877330255,5.7307,174.43,174.41,0.03751185]
[1747877330659,0.03892778,174.44,174.41,0.03751185]
[1747877330859,5.7307,174.43,174.41,0.03751185]
[1747877331361,5.731,174.42,174.41,0.03751185]
[1747877332562,5.7308,174.43,174.41,0.03751185]
[1747877332858,0.03892778,174.44,174.42,5.7309]
[1747877333259,0.03892778,174.44,174.41,0.03751185]
[1747877334159,0.03892778,174.44,174.42,5.731]
[1747877334762,0.03892778,174.44,174.43,5.7307]
[1747877335060,0.03892778,174.44,174.41,0.03751185]
[1747877335253,0.03892778,174.44,174.42,5.7308]
[1747877335756,0.03892778,174.44,174.41,0.03751185]
[1747877335962,0.03892778,174.44,174.42,5.731]
[1747877337170,0.03892778,174.44,174.41,0.03751185]
[1747877337861,0.03892778,174.44,174.42,5.7307]
[1747877338059,0.03892778,174.44,174.41,0.03751185]
[1747877338761,0.03892778,174.44,174.42,5.731]
[1747877340657,0.03892778,174.44,174.41,0.03751185]
[1747877341064,5.76952778,174.44,174.41,0.03751185]
[1747877341665,0.03892778,174.44,174.41,5.76881185]
[1747877341961,0.03892778,174.44,174.41,0.03751185]
[1747877342960,5.7308,174.43,174.41,0.03751185]
[1747877343564,5.76932778,174.44,174.41,0.03751185]
[1747877344568,5.7308,174.43,174.41,0.03751185]
[1747877345066,5.731,174.42,174.41,0.03751185]
[1747877345260,0.03892778,174.44,174.41,0.03751185]
[1747877345667,5.76952778,174.44,174.41,0.03751185]
[1747877346366,5.7307,174.43,174.41,0.03751185]
[1747877346666,0.03892778,174.44,174.41,0.03751185]
[1747877346866,5.7307,174.43,174.41,0.03751185]
[1747877347363,0.03892778,174.44,174.41,0.03751185]
[1747877347563,5.76952778,174.44,174.41,0.03751185]
[1747877347963,0.03892778,174.44,174.41,0.03751185]
[1747877348866,5.7309,174.43,174.41,0.03751185]
[1747877349870,5.731,174.42,174.41,0.03751185]
[1747877350570,5.7308,174.43,174.41,0.03751185]
[1747877351364,0.03892778,174.44,174.41,0.03751185]
[1747877351967,0.03892778,174.44,174.42,5.7308]
[1747877352169,0.03892778,174.44,174.41,0.03751185]
[1747877352570,5.7309,174.43,174.41,0.03751185]
[1747877353374,5.731,174.42,174.41,0.03751185]
[1747877354668,0.03892778,174.44,174.41,0.03751185]
[1747877355975,5.76932778,174.44,174.41,0.03751185]
[1747877358278,5.7308,174.43,174.41,0.03751185]
[1747877358772,5.7307,174.43,174.41,0.03751185]
[1747877359677,0.03892778,174.44,174.41,0.03751185]
[1747877360470,0.03892778,174.44,174.43,5.7307]
[1747877364985,0.03892778,174.44,174.43,7.16390579]
[1747877366486,0.03892778,174.44,174.43,5.7307]
[1747877368985,0.03892778,174.44,174.42,5.7309]
[1747877370683,0.03892778,174.44,174.43,5.7307]
[1747877375392,2.778e-05,174.44,174.43,5.7307]
[1747877377085,2.778e-05,174.44,174.43,7.16381567]
[1747877383196,634.94,174.54,174.43,147.23558661]
[1747877383494,139.08,174.54,174.51,5.7278]
[1747877383696,139.08,174.54,174.43,147.23558661]
[1747877383994,2.848e-05,174.5,174.47,0.04355639]
[1747877384289,5.7262,174.57,174.54,5.727]
[1747877384496,149.65786296,174.58,174.48,139.08]
[1747877384685,10.57786296,174.58,174.48,139.08]
[1747877384996,0.0425506,174.55,174.51,0.03806666]
[1747877385303,0.0425506,174.55,174.54,5.7271]
[1747877385798,0.0425506,174.55,174.53,5.7273]
[1747877386099,0.0425506,174.55,174.51,0.03806666]
[1747877387201,0.0425506,174.55,174.53,5.7271]
[1747877387702,0.0425506,174.55,174.51,0.03806666]
[1747877388000,0.0425506,174.55,174.54,5.7271]
[1747877388295,0.0425506,174.55,174.51,0.03806666]
[1747877389201,5.7693506,174.55,174.51,5.76606666]
[1747877389595,0.0425506,174.55,174.52,5.7277]
[1747877391297,0.0425506,174.55,174.51,5.76606666]
[1747877391703,0.0425506,174.55,174.51,0.03806666]
[1747877392601,0.0425506,174.55,174.52,5.7277]
[1747877392805,0.0425506,174.55,174.51,0.03806666]
[1747877393204,0.0425506,174.55,174.53,5.7271]
[1747877393502,0.0425506,174.55,174.51,0.03806666]
[1747877393702,0.0425506,174.55,174.54,5.7271]
[1747877397104,5.06e-05,174.55,174.54,5.7271]
[1747877408309,139.08,174.61,174.6,5.7251]
[1747877408514,144.7236,174.65,174.53,139.02]
[1747877409108,144.7236,174.65,174.61,5.7246]
[1747877409516,144.76313963,174.65,174.61,5.767262]
[1747877409703,139.03953963,174.65,174.61,0.042662]
[1747877410424,5.7238,174.64,174.61,0.042662]
[1747877410719,139.03953963,174.65,174.61,0.042662]
[1747877411021,5.724,174.64,174.61,0.042662]
[1747877411718,0.03953963,174.65,174.61,0.042662]
[1747877412708,0.03953963,174.65,174.64,5.7238]
[1747877413422,3.963e-05,174.65,174.64,5.7238]
[1747877414825,148.85786296,174.74,174.63,138.28]
[1747877415319,138.28,174.74,174.63,138.28]
[1747877415514,138.28,174.74,174.7,5.7215]
[1747877415909,138.32185347,174.74,174.7,5.76482198]
[1747877416125,144.04235347,174.74,174.7,5.76482198]
[1747877416421,138.32185347,174.74,174.7,5.76482198]
[1747877417423,144.04235347,174.74,174.7,5.76482198]
[1747877417819,138.32185347,174.74,174.7,0.04332198]
[1747877418025,138.32185347,174.74,174.63,138.28]
[1747877418225,6.72247094,174.73,174.59,138.26]
[1747877418620,6.72247094,174.72,174.59,138.26]
[1747877419025,0.03756385,174.67,174.64,0.04291423]
[1747877419417,0.03756385,174.67,174.57,1.00376741]
[1747877420323,0.03756385,174.67,174.58,5.7255]
[1747877420518,0.03756385,174.67,174.61,0.04297598]
[1747877422230,5.7244,174.63,174.61,0.04297598]
[1747877422429,0.03756385,174.67,174.61,0.04297598]
[1747877423529,5.724,174.64,174.61,0.04297598]
[1747877426227,0.03756385,174.67,174.61,0.04297598]
[1747877426929,5.7244,174.62,174.61,0.04297598]
[1747877428528,5.76440234,174.63,174.61,0.04297598]
[1747877428730,0.04020234,174.63,174.61,0.04297598]
[1747877429032,5.7244,174.62,174.61,0.04297598]
[1747877429626,5.76440234,174.63,174.61,0.04297598]
[1747877429933,0.04020234,174.63,174.61,0.04297598]
[1747877430333,0.04020234,174.63,174.62,5.7244]
[1747877430535,2.34e-06,174.63,174.62,5.7244]
[1747877431439,10.57786296,174.71,174.69,5.722]
[1747877431639,10.57786296,174.71,174.64,138.26]
[1747877432637,0.03823809,174.69,174.68,5.7225]
[1747877432837,0.03823809,174.69,174.66,0.03738412]
[1747877433241,0.03823809,174.69,174.67,5.7225]
[1747877433742,0.03823809,174.69,174.66,0.03738412]
[1747877434835,5.76073809,174.69,174.66,0.03738412]
[1747877436039,0.03823809,174.69,174.66,0.03738412]
[1747877436733,0.03823809,174.69,174.66,5.76018412]
[1747877437139,0.03823809,174.69,174.66,0.03738412]
[1747877437340,0.03823809,174.69,174.67,5.7225]
[1747877438138,0.03823809,174.69,174.68,5.7225]
[1747877447656,3.809e-05,174.69,174.68,5.7225]
[1747877452253,137.56,174.76,174.75,5.7202]
[1747877454242,137.56,174.76,174.74,0.04033479]
[1747877454448,137.56,174.76,174.64,137.54]
[1747877454754,5.721,174.73,174.64,137.54]
[1747877454952,137.56,174.76,174.68,5.7222]
[1747877455554,0.04354921,174.74,174.7,0.03739603]
[1747877455953,5.7214,174.72,174.7,0.03739603]
[1747877456755,5.7215,174.71,174.7,0.03739603]
[1747877459361,0.04354921,174.74,174.7,0.03739603]
[1747877460060,5.7211,174.73,174.7,0.03739603]
[1747877460366,5.7215,174.71,174.7,0.03739603]
[1747877460761,0.04354921,174.74,174.7,0.03739603]
[1747877461161,0.04354921,174.74,174.7,6.75986697]
[1747877461462,0.04354921,174.74,174.73,5.7208]
[1747877462560,10.57786296,174.79,174.78,5.7192]
[1747877462965,137.54,174.81,174.72,6.72247094]
[1747877463166,137.54,174.81,174.79,5.7188]
[1747877463460,137.54,174.81,174.72,6.72247094]
[1747877463654,0.03894182,174.78,174.75,0.03910833]
[1747877464673,5.7199,174.76,174.75,0.03910833]
[1747877464874,143.2399,174.76,174.75,0.03910833]
[1747877467076,143.2399,174.76,174.75,8.33e-06]
[1747877474377,136.91894182,174.78,174.75,8.33e-06]
[1747877474880,0.03894182,174.78,174.75,8.33e-06]
[1747877477286,0.03894182,174.78,174.76,5.7199]
[1747877477584,0.03894182,174.78,174.75,8.33e-06]
[1747877477976,0.03894182,174.78,174.77,5.7195]
[1747877478486,136.86,174.84,174.81,5.7181]
[1747877478987,505.17786296,174.87,174.74,136.86]
[1747877478988,505.17786296,174.87,174.79,6.72247094]
[1747877479176,147.43786296,174.87,174.79,6.72247094]
[1747877479381,0.04060979,174.85,174.81,0.03701179]
[1747877479977,0.04060979,174.85,174.84,5.7172]
[1747877482082,0.04060979,174.85,174.83,5.7175]
[1747877482283,0.04060979,174.85,174.82,6.72247094]
[1747877482681,0.04060979,174.85,174.83,5.7176]
[1747877483688,0.04060979,174.85,174.81,5.75511179]
[1747877483886,0.04060979,174.85,174.81,0.03701179]
[1747877484191,0.04060979,174.85,174.82,5.7177]
[1747877484686,0.04060979,174.85,174.81,0.03701179]
[1747877487993,108.7,174.84,174.72,1.00376741]
[1747877488190,5.7187,174.8,174.75,5.7201]
[1747877488393,136.8,174.83,174.72,1.00376741]
[1747877488893,0.04104134,174.79,174.76,0.038385]
[1747877489192,5.76024134,174.79,174.76,0.038385]
[1747877489797,0.04104134,174.79,174.76,0.038385]
[1747877490095,136.8,174.78,174.76,0.038385]
[1747877490293,5.7196,174.77,174.76,0.038385]
[1747877491394,5.72,174.76,174.66,7.72623835]
[1747877491788,136.8,174.78,174.66,6.72247094]
[1747877491995,5.7199,174.76,174.66,6.72247094]
[1747877492194,5.7199,174.76,174.69,5.7219]
[1747877492500,0.04275532,174.74,174.71,0.03891966]
[1747877493384,0.04275532,174.74,174.73,5.7209]
[1747877493594,0.04275532,174.74,174.71,0.03891966]
[1747877493796,0.04275532,174.74,174.73,5.7209]
[1747877494497,5.532e-05,174.74,174.73,5.7209]
[1747877496301,136.82,174.82,174.72,6.72247094]
[1747877496500,94.07034833,258.62,174.72,6.72247094]
[1747877496501,136.82,174.95,174.78,6.72247094]
[1747877496796,136.82,174.95,174.81,6.72247094]
[1747877496994,136.82,174.89,174.81,6.72247094]
[1747877497296,0.041869,174.87,174.84,5.717]
[1747877497701,0.041869,174.87,174.83,0.04182388]
[1747877498596,0.041869,174.87,174.85,5.7167]
[1747877499297,0.041869,174.87,174.84,5.7172]
[1747877499900,0.041869,174.87,174.83,0.04182388]
[1747877500300,10.57786296,174.99,174.86,6.72247094]
[1747877500497,5.7128,174.98,174.92,5.7144]
[1747877500989,136.8,175.0,174.9,5.715]
[1747877501395,5.713,174.97,174.9,5.715]
[1747877501587,0.04149179,174.97,174.93,0.0387935]
[1747877502096,5.75459179,174.97,174.93,0.0387935]
[1747877502998,0.04149179,174.97,174.93,0.0387935]
[1747877503896,0.04149179,174.97,174.94,5.714]
[1747877504503,0.04149179,174.97,174.93,0.0387935]
[1747877506998,5.7135,174.96,174.93,0.0387935]
[1747877507208,136.18,174.95,174.93,0.0387935]
[1747877507705,141.8939,174.95,174.93,0.0387935]
[1747877508202,136.18,174.95,174.93,0.0387935]
[1747877508405,136.18,174.95,174.87,5.7163]
[1747877508801,136.18,174.95,174.79,146.85949985]
[1747877509195,136.18,174.95,174.79,136.16]
[1747877509398,5.7157,174.89,174.84,5.717]
[1747877509598,136.16,174.88,174.85,0.04059531]
[1747877510097,141.8761,174.88,174.85,0.04059531]
[1747877511699,5.7165,174.87,174.85,0.04059531]
[1747877513510,5.7166,174.86,174.85,0.04059531]
[1747877514297,5.7166,174.86,174.85,9.531e-05]
[1747877514513,5.7181,174.82,174.72,10.69949985]
[1747877514804,136.18,174.81,174.72,10.69949985]
[1747877515010,136.18,174.81,174.77,5.7196]
[1747877515413,136.21692833,174.81,174.77,0.03639896]
[1747877516011,136.21692833,174.81,174.79,5.7189]
[1747877517310,0.03692833,174.81,174.8,5.7186]
[1747877519811,0.03692833,174.81,174.77,0.03639896]
[1747877519812,0.03692833,174.81,174.79,5.7189]
[1747877520813,0.03692833,174.81,174.77,5.75569896]
[1747877521005,0.03692833,174.81,174.77,0.03639896]
[1747877521506,0.03692833,174.81,174.66,136.2]
[1747877521710,108.7,174.83,174.66,136.2]
[1747877521907,108.7,174.83,174.71,5.7215]
[1747877522314,0.04160913,174.79,174.75,0.03939786]
[1747877522611,5.7199,174.76,174.75,0.03939786]
[1747877524717,5.7205,174.75,174.69,5.7219]
[1747877524908,136.2,174.78,174.62,630.48]
[1747877525107,136.2,174.78,174.64,1.43112595]
[1747877525614,0.03729901,174.73,174.69,0.04017009]
[1747877525814,136.25729901,174.73,174.69,0.04017009]
[1747877526015,136.25729901,174.73,174.72,5.7212]
[1747877526308,136.25729901,174.73,174.69,0.04017009]
[1747877526508,0.03729901,174.73,174.69,0.04017009]
[1747877526711,0.03729901,174.73,174.72,5.7212]
[1747877527216,0.03729901,174.73,174.69,0.04017009]
[1747877527613,0.03729901,174.73,174.61,5.7248]
[1747877527813,108.72,174.72,174.55,136.24]
[1747877528015,5.7235,174.65,174.52,10.69949985]
[1747877528219,136.24,174.64,174.56,138.04810192]
[1747877528411,136.24,174.63,174.56,132.32200192]
[1747877528613,0.04225959,174.61,174.58,0.03949152]
[1747877528812,136.24,174.62,174.61,1.01170379]
[1747877529019,0.04323668,174.63,174.61,1.01170379]
[1747877529218,0.0426485,174.64,174.61,1.01170379]
[1747877530511,5.7667485,174.64,174.61,1.01170379]
[1747877530713,0.0426485,174.64,174.61,1.01170379]
[1747877531617,5.7245,174.62,174.61,1.01170379]
[1747877531925,0.0426485,174.64,174.6,0.04364725]
[1747877532316,5.7248,174.61,174.6,0.04364725]
[1747877532518,0.0426485,174.64,174.48,10.69949985]
[1747877532720,630.8,174.65,174.48,10.69949985]
[1747877533424,0.03776875,174.58,174.55,0.03936913]
[1747877533621,136.06083108,174.58,174.55,0.03936913]
[1747877534526,141.78673108,174.58,174.55,0.03936913]
[1747877534827,136.06083108,174.58,174.55,0.03936913]
[1747877536321,136.06083108,174.58,174.42,136.04]
[1747877536626,136.06083108,174.58,174.41,192.96965484]
[1747877536627,136.02,174.58,174.41,192.96965484]
[1747877536822,5.7283,174.51,174.46,5.7297]
[1747877537029,136.04,174.5,174.46,5.7297]
[1747877537326,136.07938255,174.5,174.46,0.0362851]
[1747877539533,0.03938255,174.5,174.46,0.0362851]
[1747877539720,0.03938255,174.5,174.49,5.7287]
[1747877540224,136.08,174.55,174.46,0.0362851]
[1747877540830,136.08,174.55,174.51,5.7279]
[1747877541026,136.12031355,174.55,174.51,0.03980456]
[1747877541426,136.12031355,174.55,174.52,5.7277]
[1747877541730,136.12031355,174.55,174.51,0.03980456]
[1747877543025,5.7274,174.53,174.51,0.03980456]
[1747877543533,5.7272,174.54,174.51,0.03980456]
[1747877543726,136.12031355,174.55,174.51,0.03980456]
[1747877544036,5.7274,174.53,174.51,0.03980456]
[1747877544330,136.12031355,174.55,174.51,0.03980456]
[1747877544932,141.84731355,174.55,174.51,0.03980456]
[1747877545231,136.12031355,174.55,174.51,0.03980456]
[1747877545534,5.7272,174.54,174.51,0.03980456]
[1747877545831,136.12031355,174.55,174.51,0.03980456]
[1747877546126,5.7272,174.54,174.51,0.03980456]
[1747877547036,5.7274,174.53,174.51,0.03980456]
[1747877547530,136.12031355,174.55,174.51,0.03980456]
[1747877547731,5.7274,174.54,174.51,0.03980456]
[1747877548234,5.7272,174.54,174.51,0.03980456]
[1747877549525,136.12031355,174.55,174.51,0.03980456]
[1747877550128,5.7278,174.52,174.51,0.03980456]
[1747877551440,5.7274,174.53,174.51,0.03980456]
[1747877552636,5.7277,174.52,174.51,0.03980456]
[1747877553731,5.7272,174.54,174.51,0.03980456]
[1747877553933,136.12031355,174.55,174.51,0.03980456]
[1747877554236,5.7277,174.52,174.51,0.03980456]
[1747877558038,136.12031355,174.55,174.51,0.03980456]
[1747877558243,136.16,174.54,174.51,0.03980456]
[1747877559237,141.8873,174.54,174.51,0.03980456]
[1747877559638,136.16,174.54,174.51,0.03980456]
[1747877560439,141.8873,174.54,174.51,0.03980456]
[1747877560735,136.16,174.54,174.51,0.03980456]
[1747877562239,136.16,174.54,174.52,5.7275]
[1747877562739,136.16,174.54,174.53,5.7274]
[1747877563040,136.16,174.54,174.51,0.03980456]
[1747877563940,5.7274,174.53,174.51,0.03980456]
[1747877564141,136.16,174.54,174.51,0.03980456]
[1747877564643,141.8872,174.54,174.51,5.76780456]
[1747877564839,136.16,174.54,174.51,0.03980456]
[1747877565543,136.16,174.54,174.51,5.76780456]
[1747877565843,136.16,174.54,174.51,0.03980456]
[1747877566031,136.16,174.54,174.52,5.7277]
[1747877566235,136.16,174.54,174.51,0.03980456]
[1747877566638,141.8871,174.54,174.51,0.03980456]
[1747877566837,136.16,174.54,174.51,0.03980456]
[1747877567341,141.8872,174.54,174.51,0.03980456]
[1747877568541,136.16,174.54,174.51,0.03980456]
[1747877568846,136.16,174.54,174.51,5.76760456]
[1747877569845,136.16,174.54,174.52,5.7277]
[1747877570644,136.16,174.54,174.51,0.03980456]
[1747877571240,136.16,174.54,174.51,5.76780456]
[1747877571445,136.16,174.54,174.51,0.03980456]
[1747877571838,136.16,174.54,174.52,5.7276]
[1747877572439,136.16,174.54,174.51,5.76780456]
[1747877573347,136.16,174.54,174.52,5.7277]
[1747877573647,136.16,174.54,174.51,0.03980456]
[1747877573844,136.16,174.54,174.53,5.7274]
[1747877574142,136.16,174.54,174.51,0.03980456]
[1747877575041,5.7278,174.52,174.51,0.03980456]
[1747877575241,136.16,174.54,174.41,203.66915469]
[1747877576247,0.0360159,174.49,174.46,0.03733369]
[1747877576447,136.0160159,174.49,174.46,0.03733369]
[1747877576841,136.0160159,174.49,174.47,5.7292]
[1747877577645,136.0160159,174.49,174.46,0.03733369]
[1747877577948,0.0360159,174.49,174.46,0.03733369]
[1747877578145,0.0360159,174.49,174.48,5.7291]
[1747877578743,0.0360159,174.49,174.47,5.7293]
[1747877578943,0.0360159,174.49,174.46,0.03733369]
[1747877579350,5.7648159,174.49,174.46,0.03733369]
[1747877579556,0.0360159,174.49,174.46,0.03733369]
[1747877580447,136.0,174.58,174.46,0.03733369]
[1747877580648,136.0,174.58,174.45,136.0]
[1747877580954,141.726,174.58,174.45,136.0]
[1747877581150,136.0,174.58,174.45,136.0]
[1747877581348,1.57e-05,174.53,174.5,10.73929484]
[1747877581553,136.0,174.68,174.51,136.0]
[1747877581751,136.0,174.68,174.56,10.69949985]
[1747877581952,136.0,174.68,174.56,146.69949985]
[1747877582150,141.7228,174.68,174.56,146.69949985]
[1747877582451,0.04087165,174.64,174.6,0.03960959]
[1747877583155,10.69316853,174.61,174.6,0.03960959]
[1747877584445,10.69316853,174.61,174.6,5.76470959]
[1747877585750,0.04087165,174.64,174.61,5.7248]
[1747877585951,0.04087165,174.64,174.6,0.03960959]
[1747877586258,0.04087165,174.64,174.62,5.7245]
[1747877586456,0.04087165,174.64,174.6,0.03960959]
[1747877587457,0.04087165,174.64,174.63,5.7241]
[1747877587949,0.04087165,174.64,174.6,0.03960959]
[1747877588863,10.69316853,174.73,174.62,10.69949985]
[1747877589265,10.69316853,174.73,174.69,5.722]
[1747877589757,135.94,174.74,174.62,10.69949985]
[1747877589958,0.03696582,174.73,174.69,0.0392278]
[1747877591367,0.03696582,174.73,174.71,5.7212]
[1747877591666,0.03696582,174.73,174.69,0.0392278]
[1747877592664,0.03696582,174.73,174.7,5.7218]
[1747877592965,0.03696582,174.73,174.69,0.0392278]
[1747877595464,0.03696582,174.73,174.72,5.7212]
[1747877595665,135.9,174.78,174.69,0.0392278]
[1747877595967,5.7193,174.78,174.73,5.7207]
[1747877596260,135.74,174.82,174.68,135.76]
[1747877596464,135.74,174.82,174.74,5.7205]
[1747877596665,0.04264368,174.79,174.76,0.03791437]
[1747877599765,0.04264368,174.79,174.77,5.7193]
[1747877600065,0.04264368,174.79,174.76,0.03791437]
[1747877600267,135.72,174.88,174.76,0.03791437]
[1747877600462,135.72,174.88,174.74,10.69949985]
[1747877601266,0.04109394,174.83,174.79,0.03931407]
[1747877601565,0.04109394,174.83,174.82,5.7179]
[1747877604672,135.72,174.88,174.8,10.69949985]
[1747877604971,135.66,174.92,174.8,10.69949985]
[1747877605170,5.7146,174.93,174.8,10.69949985]
[1747877605369,135.66,174.94,174.8,10.69949985]
[1747877605673,0.03800937,174.89,174.85,0.04325751]
[1747877605874,0.03800937,174.89,174.88,5.716]
[1747877606078,0.03800937,174.89,174.85,0.04325751]
[1747877606576,0.03800937,174.89,174.88,5.716]
[1747877607564,494.42,174.97,174.85,0.04325751]
[1747877607771,135.62,174.98,174.86,135.62]
[1747877607969,5.7127,174.98,174.86,135.62]
[1747877608370,141.3325,174.99,174.86,135.62]
[1747877608567,0.03847929,174.94,174.91,0.03606404]
[1747877609867,135.65847929,174.94,174.91,0.03606404]
[1747877610070,5.7155,174.9,174.83,10.69949985]
[1747877610470,5.7155,174.9,174.85,5.7167]
[1747877610873,5.7155,174.9,174.82,135.62]
[1747877611070,0.03669107,174.88,174.84,0.04185067]
[1747877611679,5.7168,174.86,174.84,0.04185067]
[1747877613179,5.7164,174.87,174.84,0.04185067]
[1747877614375,5.7167,174.86,174.84,0.04185067]
[1747877614678,0.03669107,174.88,174.84,0.04185067]
[1747877615581,5.717,174.85,174.84,0.04185067]
[1747877618075,5.72,174.85,174.72,192.64692412]
[1747877618270,135.6,174.84,174.63,640.49949985]
[1747877618580,494.2,174.83,174.63,640.49949985]
[1747877618773,494.2,174.83,174.63,146.29949985]
[1747877618976,0.039752,174.75,174.72,0.03694751]
[1747877619178,5.7219,174.7,174.63,135.6]
[1747877619372,0.0379995,174.68,174.65,0.04342928]
[1747877620576,0.0379995,174.68,174.67,5.7228]
[1747877623082,0.0379995,174.68,174.66,5.7231]
[1747877623285,0.0379995,174.68,174.65,0.04342928]
[1747877623581,0.0379995,174.68,174.66,5.7232]
[1747877623787,0.0379995,174.68,174.65,0.04342928]
[1747877624279,0.0379995,174.68,174.59,135.64]
[1747877624473,0.0379995,174.68,174.54,136.51196373]
[1747877624675,135.5,174.69,174.54,136.51196373]
[1747877625284,0.04124605,174.63,174.6,0.0368143]
[1747877625476,135.56124605,174.63,174.6,0.0368143]
[1747877627987,135.56124605,174.63,174.62,5.7245]
[1747877628383,135.56124605,174.63,174.6,0.0368143]
[1747877629577,125.56124605,174.63,174.5,135.56]
[1747877629782,125.56124605,174.63,174.56,5.7261]
[1747877629983,125.56124605,174.63,174.5,135.56]